bitfinex-derivatives/quotes_SOLF0:USTF0_20251018
["timestamp","ask_amount","ask_price","bid_price","bid_amount"]
[1760773145651,2.77,187.35,187.22,2.30300042]
[1760773145851,2.77,187.33,187.22,2.30300042]
[1760773146051,4.19186909,187.32,187.22,2.30300042]
[1760773146255,2.77,187.33,187.22,2.30300042]
[1760773146555,4.19922942,187.32,187.22,2.30300042]
[1760773146754,2.77,187.33,187.26,4.8047]
[1760773147057,2.77,187.33,187.22,2.30300042]
[1760773147258,4.20226787,187.32,187.22,2.30300042]
[1760773147451,2.77,187.33,187.25,2.30300042]
[1760773148459,7.73864208,187.37,187.25,2.30300042]
[1760773148757,4.20397529,187.36,187.3,2.30300042]
[1760773149053,7.73864208,187.42,187.35,4.8024]
[1760773149255,4.20270305,187.41,187.33,2.30300042]
[1760773149456,4.20270305,187.4,187.38,1.46910261]
[1760773149653,3.69916455,187.43,187.36,1.46910261]
[1760773149853,4.20167013,187.42,187.38,1.46910261]
[1760773150053,0.92916455,187.43,187.4,1.46910261]
[1760773150254,0.92916455,187.43,187.42,1.46910261]
[1760773150454,0.92916455,187.43,187.41,1.46910261]
[1760773150861,0.92916455,187.43,187.41,6.27010261]
[1760773151455,0.92916455,187.43,187.35,44.56]
[1760773151656,4.1954931,187.42,187.33,1.46910261]
[1760773151862,8.46459571,187.41,187.31,1.46910261]
[1760773152059,4.1954931,187.4,187.31,1.46910261]
[1760773152258,2.8,187.41,187.33,6.27190261]
[1760773152862,2.8,187.41,187.35,1.46910261]
[1760773153467,2.8,187.41,187.29,3.61791623]
[1760773153868,2.8,187.41,187.29,48.15791623]
[1760773154166,2.8,187.41,187.34,4.8026]
[1760773155266,0.92916455,187.43,187.3,62.0]
[1760773155862,0.92916455,187.43,187.33,3.61791623]
[1760773156367,0.92916455,187.43,187.33,48.15791623]
[1760773156760,3.72916455,187.43,187.31,3.61791623]
[1760773156965,3.72916455,187.43,187.36,4.8023]
[1760773158058,3.72916455,187.43,187.37,4.8018]
[1760773159662,3.72916455,187.43,187.38,4.8016]
[1760773159865,0.92916455,187.43,187.31,3.61791623]
[1760773160063,0.92916455,187.43,187.3,62.0]
[1760773160064,0.92916455,187.43,187.35,48.15791623]
[1760773160268,0.92916455,187.43,187.35,3.61791623]
[1760773160467,0.92916455,187.43,187.36,44.54]
[1760773160668,3.72916455,187.43,187.41,4.8008]
[1760773161173,0.92916455,187.43,187.41,4.8008]
[1760773161363,0.92916455,187.43,187.39,4.8015]
[1760773161568,2.8,187.42,187.39,4.8015]
[1760773163971,0.92916455,187.43,187.39,4.8015]
[1760773164271,0.92916455,187.43,187.4,4.8011]
[1760773164467,0.92916455,187.43,187.31,3.61791623]
[1760773164769,0.92916455,187.43,187.3,62.0]
[1760773164770,0.92916455,187.43,187.36,44.54]
[1760773165273,0.92916455,187.43,187.41,4.8009]
[1760773166777,2.8,187.45,187.41,4.8009]
[1760773168686,2.8,187.49,187.41,4.8009]
[1760773168970,2.8,187.5,187.41,4.8009]
[1760773169366,42.12,187.51,187.41,4.8009]
[1760773169570,4.18076862,187.5,187.41,4.8009]
[1760773169767,2.8,187.5,187.41,4.8009]
[1760773170086,2.8,187.5,187.36,44.54]
[1760773170087,2.8,187.54,187.39,3.61791623]
[1760773170378,2.8,187.53,187.4,44.52]
[1760773170580,2.8,187.53,187.44,4.8001]
[1760773170774,8.76872619,187.56,187.44,4.8001]
[1760773170966,3.61791623,187.59,187.44,4.8001]
[1760773170967,2.8,187.54,187.44,4.8001]
[1760773171167,25.0284554,187.58,187.44,4.8001]
[1760773171371,2.8,187.56,187.44,4.8001]
[1760773171574,2.8,187.54,187.44,4.8001]
[1760773171776,2.8,187.53,187.34,3.61791623]
[1760773171970,11.56871988,187.52,187.35,10.58]
[1760773172175,4.59040761,187.54,187.35,19.04]
[1760773172482,2.8,187.52,187.35,19.04]
[1760773172681,2.8,187.51,187.35,19.04]
[1760773172881,4.59040761,187.54,187.35,19.04]
[1760773173083,2.8,187.52,187.4,4.8011]
[1760773173375,2.8,187.45,187.4,4.8011]
[1760773174170,1.46908521,187.46,187.4,4.8011]
[1760773174171,4.26908521,187.46,187.4,4.8011]
[1760773174681,2.8,187.45,187.4,4.8011]
[1760773175082,1.46908521,187.46,187.4,4.8011]
[1760773175279,2.8,187.45,187.4,4.8011]
[1760773175481,1.46908521,187.46,187.4,4.8011]
[1760773176281,2.8,187.45,187.4,4.8011]
[1760773176978,1.46908521,187.46,187.4,4.8011]
[1760773177682,2.8,187.52,187.42,4.8005]
[1760773177886,2.8,187.49,187.42,4.8005]
[1760773178984,2.8,187.49,187.44,4.8]
[1760773179186,2.8,187.52,187.44,4.8]
[1760773179381,2.8,187.52,187.45,4.7998]
[1760773180686,2.8,187.52,187.46,4.7995]
[1760773181390,4.03908521,187.55,187.47,4.7993]
[1760773181582,1.46908521,187.53,187.45,1.46908521]
[1760773181782,1.46908521,187.53,187.43,1.46908521]
[1760773181983,2.57,187.52,187.43,6.26958521]
[1760773182381,2.57,187.52,187.43,1.46908521]
[1760773182583,2.57,187.52,187.45,4.7998]
[1760773182982,2.57,187.52,187.45,6.26888521]
[1760773191692,2.57,187.52,187.46,4.7996]
[1760773194095,1.46908521,187.55,187.38,62.0]
[1760773194293,11.3761483,187.54,187.44,1.46908521]
[1760773194494,2.57,187.52,187.44,1.46908521]
[1760773194995,2.57,187.52,187.44,6.26918521]
[1760773195502,1.46908521,187.53,187.44,6.26918521]
[1760773196201,2.57,187.52,187.44,6.26918521]
[1760773197489,1.46908521,187.53,187.44,6.26918521]
[1760773197890,2.57,187.52,187.44,6.26918521]
[1760773198095,1.46908521,187.53,187.44,6.26918521]
[1760773198292,2.57,187.52,187.44,6.26918521]
[1760773198692,1.46908521,187.53,187.44,6.26918521]
[1760773199504,4.17565886,187.52,187.44,6.26918521]
[1760773199702,2.57,187.51,187.44,6.26918521]
[1760773200604,2.57,187.51,187.45,4.7998]
[1760773204801,2.57,187.51,187.44,1.46908521]
[1760773205496,2.57,187.51,187.43,4.8004]
[1760773205701,2.64,187.51,187.43,4.8004]
[1760773205904,1.46908521,187.52,187.43,4.8004]
[1760773206109,2.64,187.47,187.38,1.46908521]
[1760773207603,2.64,187.47,187.41,4.8009]
[1760773212406,10.10786825,187.57,187.37,94.10608441]
[1760773212407,2.79,187.5,187.4,2.2949978]
[1760773213100,2.79,187.48,187.4,2.2949978]
[1760773213301,2.79,187.48,187.4,7.0962978]
[1760773213508,2.79,187.51,187.4,4.8013]
[1760773213804,2.79,187.49,187.37,96.40108221]
[1760773214009,2.79,187.49,187.42,4.8006]
[1760773214204,2.79,187.49,187.4,2.2949978]
[1760773214404,2.79,187.53,187.43,2.2949978]
[1760773214604,2.79,187.53,187.37,94.10608441]
[1760773214605,2.79,187.56,187.46,2.2949978]
[1760773214907,8.82382448,187.55,187.46,2.2949978]
[1760773215110,11.61382448,187.54,187.47,4.7993]
[1760773215307,8.82382448,187.53,187.47,4.7993]
[1760773215604,2.79,187.54,187.47,4.7993]
[1760773215809,8.82343467,187.53,187.47,4.7993]
[1760773216012,2.79,187.54,187.47,4.7993]
[1760773216211,2.79,187.54,187.48,4.7991]
[1760773216508,3.96888279,187.57,187.48,4.7991]
[1760773216709,8.82244876,187.56,187.48,4.7991]
[1760773216912,11.61244876,187.55,187.48,4.7991]
[1760773217103,8.82244876,187.54,187.48,4.7991]
[1760773217304,2.79,187.55,187.48,4.7991]
[1760773217504,8.82228941,187.54,187.48,4.7991]
[1760773217804,2.79,187.55,187.48,4.7991]
[1760773218008,8.82228941,187.54,187.48,4.7991]
[1760773218208,2.79,187.55,187.48,4.7991]
[1760773218403,8.82279411,187.54,187.49,4.7988]
[1760773218710,2.79,187.56,187.49,4.7988]
[1760773219014,4.17841363,187.55,187.49,4.7988]
[1760773219211,2.79,187.56,187.49,4.7988]
[1760773219406,8.80264108,187.55,187.49,4.7988]
[1760773219607,2.79,187.56,187.49,4.7988]
[1760773219809,8.80264108,187.55,187.49,4.7988]
[1760773220010,2.79,187.56,187.49,2.2949978]
[1760773221010,2.79,187.56,187.51,4.7983]
[1760773221211,4.97787267,187.62,187.49,2.2949978]
[1760773221413,2.79,187.6,187.51,2.2949978]
[1760773221607,2.79,187.58,187.51,2.2949978]
[1760773222007,2.79,187.58,187.51,7.0933978]
[1760773224512,3.96498219,187.62,187.51,2.2949978]
[1760773224709,11.58478794,187.61,187.53,4.7979]
[1760773225008,8.79478794,187.6,187.54,2.2949978]
[1760773225202,2.79,187.62,187.53,4.7979]
[1760773225406,2.79,187.6,187.51,7.0933978]
[1760773225613,4.17330229,187.59,187.51,2.2949978]
[1760773225809,2.79,187.6,187.51,2.2949978]
[1760773226109,3.96340077,187.63,187.52,4.798]
[1760773226316,11.57968516,187.62,187.5,2.2949978]
[1760773226514,2.79,187.6,187.5,2.2949978]
[1760773226717,4.17315652,187.59,187.5,2.2949978]
[1760773227014,2.79,187.6,187.5,2.2949978]
[1760773227210,2.79,187.6,187.5,7.0936978]
[1760773227515,2.79,187.58,187.5,7.0936978]
[1760773227709,2.79,187.58,187.51,4.7983]
[1760773227904,2.79,187.58,187.5,2.2949978]
[1760773228308,2.79,187.61,187.53,7.0927978]
[1760773229506,2.79,187.61,187.54,4.7975]
[1760773230113,8.78020248,187.66,187.53,2.2949978]
[1760773230413,2.79,187.7,187.57,4.7967]
[1760773230716,8.77358666,187.69,187.57,4.7967]
[1760773231011,8.77358666,187.68,187.57,4.7967]
[1760773231211,2.79,187.66,187.59,2.2949978]
[1760773232315,2.79,187.74,187.65,2.2949978]
[1760773233009,2.79,187.79,187.68,2.2949978]
[1760773233208,2.79,187.77,187.68,2.2949978]
[1760773233411,4.59053548,187.8,187.58,35.64]
[1760773233612,7.38053548,187.79,187.68,2.2949978]
[1760773233917,2.79,187.79,187.68,2.2949978]
[1760773234118,2.79,187.79,187.68,7.0890978]
[1760773234412,138.14,187.81,187.68,7.0890978]
[1760773234810,2.79,187.8,187.68,7.0890978]
[1760773235308,138.14,187.81,187.68,7.0890978]
[1760773235504,2.79,187.8,187.68,7.0890978]
[1760773235714,138.14,187.81,187.68,7.0890978]
[1760773235910,2.79,187.8,187.68,7.0890978]
[1760773236111,138.14,187.81,187.68,7.0890978]
[1760773236311,2.79,187.8,187.68,7.0890978]
[1760773236616,138.14,187.81,187.68,7.0890978]
[1760773237323,2.79,187.8,187.68,7.0890978]
[1760773237615,138.14,187.81,187.68,7.0890978]
[1760773237812,2.79,187.8,187.68,7.0890978]
[1760773238010,138.14,187.81,187.68,7.0890978]
[1760773238407,2.79,187.8,187.68,7.0890978]
[1760773238713,138.14,187.81,187.68,7.0890978]
[1760773238918,2.79,187.8,187.68,7.0890978]
[1760773239117,138.14,187.81,187.68,7.0890978]
[1760773239312,2.79,187.8,187.68,7.0890978]
[1760773240115,138.14,187.81,187.68,7.0890978]
[1760773240311,2.79,187.8,187.68,7.0890978]
[1760773240513,138.14,187.81,187.68,7.0890978]
[1760773240814,2.79,187.79,187.66,4.7946]
[1760773241014,2.73,187.77,187.59,62.0]
[1760773241314,2.73,187.77,187.55,11.8897978]
[1760773241315,2.73,187.77,187.61,2.2949978]
[1760773241521,5.0249978,187.77,187.61,2.2949978]
[1760773241721,5.0249978,187.77,187.6,4.7962]
[1760773241722,2.2949978,187.74,187.6,4.7962]
[1760773242215,2.73,187.73,187.58,7.0916978]
[1760773242417,2.73,187.71,187.58,2.2949978]
[1760773243018,44.48,187.72,187.6,4.796]
[1760773243518,2.73,187.71,187.6,4.796]
[1760773243719,44.48,187.72,187.6,4.796]
[1760773244518,2.73,187.71,187.6,4.796]
[1760773244719,2.73,187.71,187.58,2.2949978]
[1760773244720,44.48,187.72,187.58,7.0915978]
[1760773244922,2.2949978,187.7,187.58,4.7966]
[1760773245227,2.73,187.69,187.58,4.7966]
[1760773245419,2.2949978,187.7,187.58,4.7966]
[1760773245817,2.73,187.69,187.58,4.7966]
[1760773246424,2.2949978,187.7,187.58,4.7966]
[1760773246826,2.73,187.69,187.58,4.7966]
[1760773247126,2.2949978,187.7,187.58,4.7966]
[1760773247726,2.73,187.69,187.6,4.796]
[1760773248024,2.73,187.71,187.55,2.2949978]
[1760773248825,46.7749978,187.72,187.58,4.7967]
[1760773249123,46.7749978,187.72,187.55,2.2949978]
[1760773249124,2.73,187.71,187.55,2.2949978]
[1760773250027,46.7749978,187.72,187.59,4.7962]
[1760773250525,2.73,187.71,187.59,4.7962]
[1760773250726,46.7749978,187.72,187.59,4.7962]
[1760773250922,46.7749978,187.72,187.57,4.7969]
[1760773251122,2.73,187.68,187.57,4.7969]
[1760773251324,2.2949978,187.69,187.57,4.7969]
[1760773251522,2.73,187.68,187.57,4.7969]
[1760773252824,2.2949978,187.69,187.54,4.7975]
[1760773253325,4.59870778,187.71,187.52,2.2949978]
[1760773253326,6.85231239,187.68,187.52,2.2949978]
[1760773253526,2.2949978,187.68,187.55,4.7973]
[1760773253826,2.73,187.67,187.52,2.2949978]
[1760773255023,2.2949978,187.68,187.56,4.797]
[1760773255424,2.73,187.67,187.56,4.797]
[1760773255621,2.73,187.67,187.58,4.7967]
[1760773255821,2.73,187.67,187.52,2.2949978]
[1760773256226,6.85878378,187.67,187.52,2.2949978]
[1760773256530,2.2949978,187.66,187.52,2.2949978]
[1760773256730,2.73,187.65,187.52,2.2949978]
[1760773257327,2.73,187.65,187.55,4.7972]
[1760773257529,2.73,187.65,187.52,2.2949978]
[1760773257729,2.73,187.65,187.48,106.46]
[1760773257730,2.73,187.65,187.55,2.2949978]
[1760773258132,2.73,187.65,187.57,4.7968]
[1760773258723,2.73,187.65,187.55,2.2949978]
[1760773258724,4.13604573,187.69,187.59,4.7963]
[1760773259029,2.73,187.68,187.59,4.7963]
[1760773260331,2.73,187.68,187.58,2.2949978]
[1760773260536,2.73,187.71,187.58,2.2949978]
[1760773260724,2.73,187.71,187.58,64.2949978]
[1760773260927,44.48,187.72,187.6,4.7962]
[1760773261123,2.2949978,187.69,187.55,2.2949978]
[1760773261326,11.48792998,187.68,187.52,2.2949978]
[1760773261537,2.73,187.66,187.52,2.2949978]
[1760773261926,2.73,187.65,187.49,2.2949978]
[1760773262133,2.73,187.63,187.48,2.2949978]
[1760773262732,2.73,187.62,187.49,4.799]
[1760773262925,2.73,187.66,187.49,4.799]
[1760773263129,2.73,187.66,187.48,2.2949978]
[1760773263130,2.73,187.64,187.48,2.2949978]
[1760773263331,2.2949978,187.67,187.53,4.7979]
[1760773263525,2.73,187.65,187.53,4.7979]
[1760773263733,2.73,187.65,187.55,4.7974]
[1760773263929,2.58,187.66,187.55,4.7974]
[1760773264236,2.58,187.64,187.55,4.7974]
[1760773264531,2.58,187.64,187.56,4.7969]
[1760773265437,2.58,187.64,187.57,4.7967]
[1760773265637,2.58,187.68,187.57,2.2949978]
[1760773266035,2.58,187.7,187.57,2.2949978]
[1760773266233,6.91718119,187.71,187.57,2.2949978]
[1760773266234,2.58,187.68,187.57,2.2949978]
[1760773266534,2.58,187.66,187.54,2.2949978]
[1760773266739,2.58,187.66,187.58,4.7965]
[1760773267227,4.62460639,187.68,187.58,4.7965]
[1760773267432,4.16041253,187.67,187.55,4.7972]
[1760773267635,2.58,187.65,187.55,4.7972]
[1760773268634,2.58,187.67,187.55,4.7972]
[1760773268839,2.2949978,187.68,187.55,4.7972]
[1760773268840,2.58,187.65,187.55,4.7972]
[1760773269137,2.2949978,187.68,187.55,4.7972]
[1760773269338,2.58,187.66,187.55,4.7972]
[1760773269537,2.58,187.64,187.55,4.7972]
[1760773270134,2.58,187.64,187.56,4.797]
[1760773271233,2.71,187.66,187.52,2.2949978]
[1760773271435,2.71,187.62,187.54,1.46661559]
[1760773272942,2.71,187.62,187.55,4.7973]
[1760773275442,2.71,187.62,187.54,1.46661559]
[1760773275640,2.71,187.62,187.44,9.6001]
[1760773275641,2.71,187.57,187.39,9.603]
[1760773275942,2.71,187.57,187.48,1.46661559]
[1760773276439,1.46661559,187.56,187.46,1.46661559]
[1760773276641,2.71,187.55,187.46,1.46661559]
[1760773277236,2.71,187.55,187.48,1.46661559]
[1760773277443,2.71,187.55,187.5,1.46661559]
[1760773277735,2.71,187.59,187.5,6.26511559]
[1760773278134,1.46661559,187.6,187.5,4.7985]
[1760773278340,4.17661559,187.58,187.5,4.7985]
[1760773279038,2.71,187.55,187.47,1.46661559]
[1760773280040,2.71,187.55,187.48,4.799]
[1760773280440,2.71,187.55,187.49,1.46661559]
[1760773280636,2.71,187.55,187.5,4.7987]
[1760773281445,1.46661559,187.6,187.5,4.7987]
[1760773281644,2.71,187.59,187.5,4.7987]
[1760773281842,2.71,187.59,187.51,6.26491559]
[1760773282045,2.71,187.59,187.51,1.46661559]
[1760773282937,2.71,187.59,187.52,4.798]
[1760773283138,2.71,187.59,187.51,1.46661559]
[1760773283950,1.46661559,187.56,187.5,4.7987]
[1760773284145,4.17661559,187.56,187.5,4.7987]
[1760773285559,2.71,187.56,187.51,4.7983]
[1760773285961,1.46661559,187.59,187.51,4.7983]
[1760773286155,2.71,187.58,187.51,4.7983]
[1760773286863,1.46661559,187.57,187.51,4.7983]
[1760773287057,4.17661559,187.57,187.51,4.7983]
[1760773288863,2.71,187.56,187.49,4.7989]
[1760773290160,2.71,187.56,187.51,4.7984]
[1760773290663,4.17661559,187.62,187.53,4.7978]
[1760773290866,2.71,187.6,187.53,4.7978]
[1760773295456,2.71,187.6,187.54,1.46661559]
[1760773295658,2.71,187.6,187.53,4.7978]
[1760773296866,1.46661559,187.61,187.53,4.7978]
[1760773297066,2.71,187.59,187.51,4.7984]
[1760773297769,2.71,187.59,187.52,6.26461559]
[1760773298860,2.71,187.59,187.5,6.26531559]
[1760773299065,2.71,187.57,187.5,6.26531559]
[1760773299263,2.71,187.57,187.5,4.7987]
[1760773300762,2.71,187.55,187.41,62.0]
[1760773300966,2.71,187.55,187.38,54.0834]
[1760773301162,2.71,187.55,187.46,6.26621559]
[1760773301358,2.71,187.55,187.46,1.46661559]
[1760773301568,2.71,187.55,187.48,1.46661559]
[1760773301764,2.71,187.55,187.46,1.46661559]
[1760773302065,2.84,187.54,187.45,1.46661559]
[1760773302565,2.84,187.54,187.47,1.46661559]
[1760773303960,2.84,187.54,187.46,4.7996]
[1760773304468,1.46661559,187.51,187.42,1.46661559]
[1760773304668,2.84,187.5,187.42,1.46661559]
[1760773305069,6.08272179,187.55,187.44,1.46661559]
[1760773305268,16.19529541,187.54,187.46,1.46661559]
[1760773305573,2.84,187.54,187.46,1.46661559]
[1760773305775,2.84,187.54,187.46,6.26621559]
[1760773306471,2.84,187.54,187.47,4.7993]
[1760773306672,2.84,187.54,187.47,6.26591559]
[1760773307274,2.84,187.54,187.49,6.26551559]
[1760773308271,2.84,187.57,187.5,4.7986]
[1760773308875,2.84,187.57,187.52,4.7982]
[1760773309077,1.46661559,187.6,187.52,4.7982]
[1760773309276,16.14703792,187.59,187.52,4.7982]
[1760773309470,4.25793064,187.58,187.52,4.7982]
[1760773309773,2.84,187.59,187.52,4.7982]
[1760773309969,2.84,187.57,187.52,4.7982]
[1760773310174,2.84,187.59,187.52,4.7982]
[1760773310375,2.84,187.57,187.52,4.7982]
[1760773310669,2.84,187.59,187.52,4.7982]
[1760773310865,4.25851644,187.58,187.52,4.7982]
[1760773311068,2.84,187.59,187.52,4.7982]
[1760773311267,4.25967327,187.58,187.52,4.7982]
[1760773311465,2.84,187.59,187.52,4.7982]
[1760773311665,4.25967381,187.58,187.52,4.7982]
[1760773311865,2.84,187.6,187.53,4.7978]
[1760773312069,4.25937676,187.59,187.53,4.7978]
[1760773312267,2.84,187.6,187.53,4.7978]
[1760773312469,4.26071863,187.59,187.53,4.7978]
[1760773312668,2.84,187.6,187.54,4.7976]
[1760773312867,2.84,187.63,187.55,1.46661559]
[1760773313077,8.74111757,187.62,187.55,1.46661559]
[1760773313280,4.26056277,187.61,187.56,4.797]
[1760773313468,2.84,187.63,187.56,4.797]
[1760773313674,4.26075672,187.62,187.56,4.797]
[1760773313869,2.84,187.63,187.56,4.797]
[1760773314073,4.26075726,187.62,187.56,4.797]
[1760773314278,2.84,187.63,187.56,4.797]
[1760773314481,4.26093674,187.62,187.56,4.797]
[1760773314779,2.84,187.63,187.56,4.797]
[1760773315078,4.26093728,187.62,187.56,4.797]
[1760773315280,2.84,187.63,187.56,4.797]
[1760773315580,4.26126082,187.62,187.56,4.797]
[1760773315778,1.46661559,187.64,187.54,4.7977]
[1760773316080,2.84,187.61,187.52,1.46661559]
[1760773316483,2.84,187.61,187.47,62.0]
[1760773316484,2.84,187.61,187.54,1.46661559]
[1760773316679,2.84,187.61,187.47,62.0]
[1760773316680,2.84,187.59,187.52,1.46661559]
[1760773318083,2.84,187.57,187.48,1.46661559]
[1760773318280,2.84,187.57,187.5,1.46661559]
[1760773318483,4.30661559,187.6,187.52,1.46661559]
[1760773318783,4.26290624,187.59,187.52,1.46661559]
[1760773318982,2.84,187.6,187.53,4.7978]
[1760773319283,2.84,187.6,187.52,1.46661559]
[1760773319486,2.84,187.6,187.54,1.46661559]
[1760773319687,2.84,187.6,187.55,4.7973]
[1760773319989,2.84,187.6,187.55,6.26391559]
[1760773320390,2.84,187.6,187.56,4.797]
[1760773320883,1.46661559,187.64,187.56,4.797]
[1760773321087,2.84,187.62,187.56,4.797]
[1760773323789,2.84,187.62,187.57,6.26341559]
[1760773323989,2.84,187.62,187.58,1.63555809]
[1760773324690,2.84,187.62,187.57,4.7968]
[1760773325993,4.91876104,187.69,187.58,1.63555809]
[1760773325994,2.81,187.65,187.58,1.63555809]
[1760773327186,2.81,187.65,187.56,4.7971]
[1760773327381,2.81,187.64,187.56,6.43265809]
[1760773327586,2.81,187.64,187.56,4.7971]
[1760773328184,2.81,187.64,187.56,6.43265809]
[1760773329587,1.63555809,187.65,187.56,6.43265809]
[1760773329788,2.81,187.63,187.56,6.43265809]
[1760773330094,4.60977607,187.63,187.56,4.7971]
[1760773331192,2.65,187.6,187.54,4.7976]
[1760773331396,2.65,187.6,187.54,1.79977607]
[1760773332695,4.56757878,187.67,187.56,4.7971]
[1760773332896,4.44977607,187.62,187.56,4.7971]
[1760773333190,1.79977607,187.6,187.54,4.7976]
[1760773333385,2.65,187.61,187.54,4.7976]
[1760773338395,2.8127925,187.62,187.54,4.7976]
[1760773338699,2.65,187.61,187.55,4.7973]
[1760773339391,2.65,187.61,187.56,4.7971]
[1760773340286,5.4627925,187.62,187.56,4.7971]
[1760773344293,2.65,187.61,187.54,4.7976]
[1760773344486,2.8127925,187.59,187.45,2.8127925]
[1760773344692,2.65,187.58,187.45,2.8127925]
[1760773345397,2.65,187.58,187.51,4.7983]
[1760773345896,2.65,187.55,187.44,2.8127925]
[1760773346802,2.65,187.55,187.41,2.8127925]
[1760773347401,2.65,187.55,187.42,62.0]
[1760773347905,2.65,187.52,187.42,62.0]
[1760773348204,2.65,187.52,187.41,2.8127925]
[1760773348609,2.65,187.52,187.39,147.4234798]
[1760773348610,2.65,187.52,187.45,4.7999]
[1760773348905,2.8127925,187.53,187.45,4.7999]
[1760773349602,2.65,187.52,187.45,4.7999]
[1760773350003,2.8127925,187.53,187.45,4.7999]
[1760773350202,2.65,187.52,187.45,4.7999]
[1760773350401,2.8127925,187.53,187.45,4.7999]
[1760773350602,2.65,187.49,187.43,4.8005]
[1760773353398,4.25751964,187.54,187.44,4.8001]
[1760773353599,5.4627925,187.54,187.42,2.8127925]
[1760773354999,2.8127925,187.54,187.46,4.7997]
[1760773355200,2.65,187.53,187.46,4.7997]
[1760773356707,2.8127925,187.54,187.46,4.7997]
[1760773357010,2.65,187.53,187.46,4.7997]
[1760773357207,2.8127925,187.54,187.46,4.7997]
[1760773357405,2.8127925,187.54,187.44,4.8002]
[1760773357712,2.65,187.5,187.39,93.3604798]
[1760773357904,2.8127925,187.51,187.39,93.3604798]
[1760773358502,2.65,187.5,187.39,93.3604798]
[1760773358808,2.8127925,187.51,187.39,93.3604798]
[1760773359203,2.8127925,187.51,187.29,2.8127925]
[1760773359204,2.8127925,187.45,187.25,12.95359572]
[1760773359404,2.8127925,187.43,187.3,2.8127925]
[1760773359601,2.65,187.44,187.36,2.8127925]
[1760773359811,6.55834806,187.56,187.36,2.8127925]
[1760773359812,2.8127925,187.5,187.36,2.8127925]
[1760773360111,2.65,187.49,187.36,2.8127925]
[1760773360316,2.65,187.49,187.41,4.8009]
[1760773360506,2.65,187.53,187.42,2.8127925]
[1760773360706,2.8127925,187.55,187.44,4.8001]
[1760773360909,2.65,187.53,187.44,4.8001]
[1760773361111,2.8127925,187.55,187.44,4.8001]
[1760773361305,2.66,187.53,187.44,4.8001]
[1760773361510,2.8127925,187.55,187.44,4.8001]
[1760773361712,2.66,187.53,187.44,4.8001]
[1760773361912,2.8127925,187.55,187.44,4.8001]
[1760773362106,2.66,187.53,187.44,4.8001]
[1760773362406,2.8127925,187.55,187.44,4.8001]
[1760773362611,4.26343131,187.54,187.44,4.8001]
[1760773362810,2.8127925,187.55,187.44,4.8001]
[1760773363012,2.66,187.53,187.44,4.8001]
[1760773363213,2.66,187.54,187.44,4.8001]
[1760773364111,2.8127925,187.55,187.44,4.8001]
[1760773364310,2.66,187.54,187.44,4.8001]
[1760773364712,2.8127925,187.55,187.44,4.8001]
[1760773364911,2.66,187.54,187.44,4.8001]
[1760773365118,2.8127925,187.55,187.45,4.7999]
[1760773365711,2.66,187.54,187.45,4.7999]
[1760773366616,2.8127925,187.55,187.45,4.7999]
[1760773366812,2.66,187.54,187.45,4.7999]
[1760773367213,2.8127925,187.55,187.45,4.7999]
[1760773367611,2.66,187.54,187.45,4.7999]
[1760773367810,2.8127925,187.55,187.45,4.7999]
[1760773368306,2.66,187.54,187.45,4.7999]
[1760773368811,2.8127925,187.55,187.45,4.7999]
[1760773369212,2.66,187.54,187.45,4.7999]
[1760773369412,2.8127925,187.55,187.45,4.7999]
[1760773370313,2.66,187.54,187.45,4.7999]
[1760773371510,2.8127925,187.55,187.45,4.7999]